[Event "Titled Tuesday Blitz January 11 2022"]
[White "Janaszak, Dawid"]
[Black "Kevlishvili, Robby"]
[WhiteFideId "1119206"]
[BlackFideId "1040634"]
[WhiteElo "2199"]
[BlackElo "2584"]
[Result "1-0"]
[Round "07"]
[TimeControl "180+1"]
[Date "2022.01.11"]
[WhiteClock "0:00:17"]
[BlackClock "0:00:05"]

1. e4 {[%clk 0:03:00]}  c5 {[%clk 0:02:59]} 2. Nc3 {[%clk 0:03:00]}  d6 {[%clk 0:03:00]} 3. f4 {[%clk 0:03:00]}  g6 {[%clk 0:03:00]} 4. Nf3 {[%clk 0:03:01]}  Bg7 {[%clk 0:03:00]} 5. Bc4 {[%clk 0:03:00]}  Nc6 {[%clk 0:02:59]} 6. O-O {[%clk 0:02:59]}  e6 {[%clk 0:02:59]} 7. d4 {[%clk 0:02:59]}  cxd4 {[%clk 0:02:58]} 8. Nb5 {[%clk 0:02:59]}  Nge7 {[%clk 0:02:57]} 9. Bb3 {[%clk 0:02:59]}  O-O {[%clk 0:02:58]} 10. Nbxd4 {[%clk 0:02:59]}  Na5 {[%clk 0:02:58]} 11. c3 {[%clk 0:02:54]}  a6 {[%clk 0:02:57]} 12. Bc2 {[%clk 0:02:53]}  b5 {[%clk 0:02:52]} 13. Qe1 {[%clk 0:02:49]}  Nac6 {[%clk 0:02:41]} 14. Be3 {[%clk 0:02:47]}  Bb7 {[%clk 0:02:38]} 15. Rd1 {[%clk 0:02:47]}  Qc7 {[%clk 0:02:33]} 16. Qh4 {[%clk 0:02:44]}  Nxd4 {[%clk 0:02:24]} 17. Bxd4 {[%clk 0:02:40]}  e5 {[%clk 0:02:20]} 18. Be3 {[%clk 0:02:25]}  f6 {[%clk 0:02:00]} 19. f5 {[%clk 0:02:13]}  gxf5 {[%clk 0:01:56]} 20. exf5 {[%clk 0:02:06]}  d5 {[%clk 0:01:54]} 21. Bh6 {[%clk 0:02:04]}  Kh8 {[%clk 0:01:45]} 22. Bxg7+ {[%clk 0:01:51]}  Kxg7 {[%clk 0:01:45]} 23. Nxe5 {[%clk 0:01:16]}  Qxe5 {[%clk 0:01:44]} 24. Rde1 {[%clk 0:01:11]}  Qc7 {[%clk 0:01:43]} 25. Qg3+ {[%clk 0:01:04]}  Qxg3 {[%clk 0:01:33]} 26. Rxe7+ {[%clk 0:01:04]}  Rf7 {[%clk 0:01:30]} 27. Rxf7+ {[%clk 0:01:04]}  Kxf7 {[%clk 0:01:31]} 28. hxg3 {[%clk 0:01:04]}  Rg8 {[%clk 0:01:22]} 29. Kf2 {[%clk 0:01:03]}  Rg5 {[%clk 0:01:22]} 30. Rd1 {[%clk 0:00:59]}  Bc6 {[%clk 0:01:11]} 31. Rd4 {[%clk 0:00:57]}  Ke7 {[%clk 0:01:11]} 32. g4 {[%clk 0:00:57]}  Kd6 {[%clk 0:01:10]} 33. Kf3 {[%clk 0:00:58]}  Rg7 {[%clk 0:01:08]} 34. Kf4 {[%clk 0:00:57]}  h6 {[%clk 0:01:07]} 35. Bb3 {[%clk 0:00:55]}  Re7 {[%clk 0:01:06]} 36. Bd1 {[%clk 0:00:48]}  a5 {[%clk 0:00:56]} 37. Bf3 {[%clk 0:00:48]}  Re1 {[%clk 0:00:46]} 38. Rd1 {[%clk 0:00:48]}  Rxd1 {[%clk 0:00:43]} 39. Bxd1 {[%clk 0:00:49]}  d4 {[%clk 0:00:16]} 40. cxd4 {[%clk 0:00:50]}  Bxg2 {[%clk 0:00:16]} 41. Bb3 {[%clk 0:00:47]}  Bc6 {[%clk 0:00:13]} 42. Be6 {[%clk 0:00:47]}  Bg2 {[%clk 0:00:12]} 43. Kg3 {[%clk 0:00:46]}  Bf1 {[%clk 0:00:12]} 44. Kh4 {[%clk 0:00:46]}  Be2 {[%clk 0:00:09]} 45. Kh5 {[%clk 0:00:45]}  Ke7 {[%clk 0:00:10]} 46. Bd5 {[%clk 0:00:41]}  b4 {[%clk 0:00:08]} 47. b3 {[%clk 0:00:40]}  Bd1 {[%clk 0:00:08]} 48. Bg2 {[%clk 0:00:38]}  Kf7 {[%clk 0:00:07]} 49. Bh3 {[%clk 0:00:35]}  Kg7 {[%clk 0:00:07]} 50. Bg2 {[%clk 0:00:34]}  Kf7 {[%clk 0:00:06]} 51. d5 {[%clk 0:00:35]}  Be2 {[%clk 0:00:05]} 52. d6 {[%clk 0:00:34]}  Ke8 {[%clk 0:00:03]} 53. Kxh6 {[%clk 0:00:33]}  Kd7 {[%clk 0:00:03]} 54. Kg6 {[%clk 0:00:23]}  Bxg4 {[%clk 0:00:02]} 55. Kxf6 {[%clk 0:00:23]}  Kxd6 {[%clk 0:00:03]} 56. Kg6 {[%clk 0:00:17]}  Ke7 {[%clk 0:00:01]} 57. f6+ {[%clk 0:00:17]}  Kf8 {[%clk 0:00:02]} 58. Bd5 {[%clk 0:00:17]}  Be2 {[%clk 0:00:02]} 59. Kf5 {[%clk 0:00:15]}  Bd3+ {[%clk 0:00:02]} 60. Be4 {[%clk 0:00:14]}  Bb5 {[%clk 0:00:02]} 61. Ke5 {[%clk 0:00:14]}  Kf7 {[%clk 0:00:01]} 62. Bd5+ {[%clk 0:00:15]}  Kf8 {[%clk 0:00:02]} 63. Kd4 {[%clk 0:00:15]}  Be2 {[%clk 0:00:02]} 64. Kc5 {[%clk 0:00:15]}  Bd3 {[%clk 0:00:03]} 65. Kb6 {[%clk 0:00:15]}  Bb1 {[%clk 0:00:03]} 66. Kxa5 {[%clk 0:00:15]}  Bxa2 {[%clk 0:00:03]} 67. Kxb4 {[%clk 0:00:15]}  Bb1 {[%clk 0:00:04]} 68. Kc5 {[%clk 0:00:16]}  Bd3 {[%clk 0:00:04]} 69. b4 {[%clk 0:00:16]}  Ke8 {[%clk 0:00:04]} 70. b5 {[%clk 0:00:16]}  Kd8 {[%clk 0:00:04]} 71. b6 {[%clk 0:00:17]}  Ba6 {[%clk 0:00:05]} 72. Kd6 {[%clk 0:00:16]}  Ke8 {[%clk 0:00:05]} 73. b7 {[%clk 0:00:15]}  Bxb7 {[%clk 0:00:04]} 74. Bxb7 {[%clk 0:00:16]}  Kf7 {[%clk 0:00:05]} 75. Ke5 {[%clk 0:00:17]} 1-0


[Site "https://www.chess.com"]

[Event "Titled Tuesday Blitz January 11 2022"]
[White "Kamsky, Gata"]
[Black "Cunjalo, Faris"]
[WhiteFideId "2000024"]
[BlackFideId "14410710"]
[WhiteElo "2645"]
[BlackElo "2263"]
[Result "1-0"]
[Round "07"]
[TimeControl "180+1"]
[Date "2022.01.11"]
[WhiteClock "0:01:37"]
[BlackClock "0:00:35"]

1. e4 {[%clk 0:03:00]}  c6 {[%clk 0:02:56]} 2. Nf3 {[%clk 0:02:59]}  d5 {[%clk 0:02:56]} 3. d3 {[%clk 0:03:00]}  Qc7 {[%clk 0:02:55]} 4. Nc3 {[%clk 0:02:59]}  dxe4 {[%clk 0:02:50]} 5. dxe4 {[%clk 0:02:59]}  e5 {[%clk 0:02:50]} 6. Bc4 {[%clk 0:02:58]}  Bg4 {[%clk 0:02:44]} 7. h3 {[%clk 0:02:55]}  Bh5 {[%clk 0:02:42]} 8. g4 {[%clk 0:02:50]}  Bg6 {[%clk 0:02:42]} 9. Nh4 {[%clk 0:02:51]}  Nd7 {[%clk 0:02:37]} 10. a3 {[%clk 0:02:36]}  Ngf6 {[%clk 0:02:26]} 11. Qf3 {[%clk 0:02:33]}  Nc5 {[%clk 0:02:18]} 12. Nxg6 {[%clk 0:02:20]}  hxg6 {[%clk 0:02:18]} 13. Be3 {[%clk 0:02:16]}  b5 {[%clk 0:01:54]} 14. Ba2 {[%clk 0:02:13]}  a5 {[%clk 0:01:51]} 15. g5 {[%clk 0:02:13]}  Nh5 {[%clk 0:01:48]} 16. Ne2 {[%clk 0:02:09]}  Bd6 {[%clk 0:01:41]} 17. Rd1 {[%clk 0:02:02]}  Nb7 {[%clk 0:01:36]} 18. O-O {[%clk 0:01:48]}  O-O {[%clk 0:01:33]} 19. h4 {[%clk 0:01:44]}  Rad8 {[%clk 0:01:23]} 20. Ng3 {[%clk 0:01:42]}  Nf4 {[%clk 0:01:23]} 21. h5 {[%clk 0:01:41]}  Kh7 {[%clk 0:00:41]} 22. hxg6+ {[%clk 0:01:38]}  fxg6 {[%clk 0:00:35]} 23. Qh1+ {[%clk 0:01:37]} 1-0


[Site "https://www.chess.com"]

[Event "Titled Tuesday Blitz January 11 2022"]
[White "Kim, Yoon-Young"]
[Black "Triapishko, Alexandr"]
[WhiteFideId "30908779"]
[BlackFideId "14122286"]
[WhiteElo "2109"]
[BlackElo "2479"]
[Result "0-1"]
[Round "07"]
[TimeControl "180+1"]
[Date "2022.01.11"]
[WhiteClock "0:00:01"]
[BlackClock "0:00:12"]

1. Nf3 {[%clk 0:03:00]}  d6 {[%clk 0:03:00]} 2. d4 {[%clk 0:02:59]}  Nf6 {[%clk 0:02:58]} 3. c4 {[%clk 0:02:58]}  g6 {[%clk 0:02:58]} 4. Nc3 {[%clk 0:02:55]}  Bf5 {[%clk 0:02:58]} 5. h3 {[%clk 0:02:47]}  Bg7 {[%clk 0:02:56]} 6. g4 {[%clk 0:02:46]}  Bd7 {[%clk 0:02:54]} 7. e4 {[%clk 0:02:33]}  O-O {[%clk 0:02:44]} 8. Be3 {[%clk 0:02:27]}  a6 {[%clk 0:02:38]} 9. a4 {[%clk 0:02:25]}  Nc6 {[%clk 0:02:29]} 10. a5 {[%clk 0:02:03]}  Re8 {[%clk 0:02:10]} 11. d5 {[%clk 0:01:57]}  Nb4 {[%clk 0:02:10]} 12. Qb3 {[%clk 0:01:21]}  c5 {[%clk 0:02:05]} 13. e5 {[%clk 0:01:22]}  Bxg4 {[%clk 0:01:33]} 14. hxg4 {[%clk 0:01:12]}  Nxg4 {[%clk 0:01:34]} 15. Bd2 {[%clk 0:01:00]}  Nxe5 {[%clk 0:01:32]} 16. Nxe5 {[%clk 0:00:59]}  Bxe5 {[%clk 0:01:31]} 17. Ne4 {[%clk 0:00:55]}  e6 {[%clk 0:01:22]} 18. Bxb4 {[%clk 0:00:36]}  cxb4 {[%clk 0:01:08]} 19. O-O-O {[%clk 0:00:31]}  exd5 {[%clk 0:00:55]} 20. cxd5 {[%clk 0:00:25]}  Bf4+ {[%clk 0:00:47]} 21. Nd2 {[%clk 0:00:26]}  Rc8+ {[%clk 0:00:48]} 22. Kb1 {[%clk 0:00:26]}  Bxd2 {[%clk 0:00:48]} 23. Rxd2 {[%clk 0:00:22]}  Re1+ {[%clk 0:00:48]} 24. Rd1 {[%clk 0:00:22]}  Rxd1+ {[%clk 0:00:48]} 25. Qxd1 {[%clk 0:00:23]}  Qxa5 {[%clk 0:00:48]} 26. Bh3 {[%clk 0:00:18]}  Rc5 {[%clk 0:00:44]} 27. Bg2 {[%clk 0:00:14]}  Qb6 {[%clk 0:00:40]} 28. Rh3 {[%clk 0:00:13]}  Rc8 {[%clk 0:00:35]} 29. Re3 {[%clk 0:00:13]}  a5 {[%clk 0:00:33]} 30. Qa4 {[%clk 0:00:12]}  Kg7 {[%clk 0:00:31]} 31. Qd1 {[%clk 0:00:09]}  Qc5 {[%clk 0:00:31]} 32. Be4 {[%clk 0:00:07]}  b5 {[%clk 0:00:28]} 33. Re2 {[%clk 0:00:06]}  Qc4 {[%clk 0:00:24]} 34. f3 {[%clk 0:00:03]}  b3 {[%clk 0:00:24]} 35. Re3 {[%clk 0:00:01]}  Rc5 {[%clk 0:00:12]} 0-1


[Site "https://www.chess.com"]

[Event "Titled Tuesday Blitz January 11 2022"]
[White "Kosakowski, Jakub"]
[Black "Martinez Ramirez, Lennis"]
[WhiteFideId "1185080"]
[BlackFideId "3509079"]
[WhiteElo "2476"]
[BlackElo "2374"]
[Result "1/2-1/2"]
[Round "07"]
[TimeControl "180+1"]
[Date "2022.01.11"]
[WhiteClock "0:00:02"]
[BlackClock "0:00:10"]

1. d4 {[%clk 0:02:56]}  e6 {[%clk 0:02:58]} 2. c4 {[%clk 0:02:56]}  b6 {[%clk 0:02:58]} 3. Nf3 {[%clk 0:02:48]}  Bb7 {[%clk 0:02:57]} 4. e3 {[%clk 0:02:48]}  g6 {[%clk 0:02:51]} 5. Bd3 {[%clk 0:02:47]}  Bg7 {[%clk 0:02:52]} 6. O-O {[%clk 0:02:47]}  Ne7 {[%clk 0:02:51]} 7. b3 {[%clk 0:02:46]}  d5 {[%clk 0:02:48]} 8. Bb2 {[%clk 0:02:46]}  Nd7 {[%clk 0:02:47]} 9. Nbd2 {[%clk 0:02:44]}  c5 {[%clk 0:02:43]} 10. Qc2 {[%clk 0:02:43]}  Rc8 {[%clk 0:02:42]} 11. dxc5 {[%clk 0:02:41]}  e5 {[%clk 0:02:38]} 12. cxb6 {[%clk 0:02:34]}  axb6 {[%clk 0:02:28]} 13. e4 {[%clk 0:02:26]}  O-O {[%clk 0:02:16]} 14. Qb1 {[%clk 0:01:56]}  d4 {[%clk 0:01:59]} 15. b4 {[%clk 0:01:55]}  Bh6 {[%clk 0:01:29]} 16. a4 {[%clk 0:01:50]}  Ra8 {[%clk 0:01:26]} 17. Re1 {[%clk 0:01:46]}  g5 {[%clk 0:01:25]} 18. h3 {[%clk 0:01:40]}  Ng6 {[%clk 0:01:25]} 19. Nh2 {[%clk 0:01:39]}  Nf4 {[%clk 0:01:24]} 20. Bf1 {[%clk 0:01:30]}  Nf6 {[%clk 0:01:19]} 21. g3 {[%clk 0:01:24]}  Ne6 {[%clk 0:01:18]} 22. c5 {[%clk 0:01:19]}  g4 {[%clk 0:01:18]} 23. cxb6 {[%clk 0:01:14]}  Bxd2 {[%clk 0:01:17]} 24. Rd1 {[%clk 0:01:09]}  Bxe4 {[%clk 0:01:14]} 25. Bd3 {[%clk 0:01:07]}  Bxd3 {[%clk 0:01:11]} 26. Qxd3 {[%clk 0:01:08]}  Bxb4 {[%clk 0:01:04]} 27. Qb5 {[%clk 0:01:07]}  Ba5 {[%clk 0:00:52]} 28. Qxe5 {[%clk 0:00:53]}  Bxb6 {[%clk 0:00:51]} 29. a5 {[%clk 0:00:49]}  Rxa5 {[%clk 0:00:49]} 30. Rxa5 {[%clk 0:00:48]}  Bxa5 {[%clk 0:00:50]} 31. Bxd4 {[%clk 0:00:46]}  Bc3 {[%clk 0:00:36]} 32. Qxf6 {[%clk 0:00:09]}  Qxf6 {[%clk 0:00:34]} 33. Bxf6 {[%clk 0:00:10]}  Bxf6 {[%clk 0:00:34]} 34. Nxg4 {[%clk 0:00:11]}  Bg7 {[%clk 0:00:34]} 35. Ne3 {[%clk 0:00:11]}  Rd8 {[%clk 0:00:34]} 36. Rb1 {[%clk 0:00:10]}  Nd4 {[%clk 0:00:33]} 37. Kg2 {[%clk 0:00:10]}  Bh6 {[%clk 0:00:31]} 38. Ng4 {[%clk 0:00:10]}  Bg7 {[%clk 0:00:31]} 39. Ne3 {[%clk 0:00:10]}  Ne6 {[%clk 0:00:30]} 40. Rb7 {[%clk 0:00:10]}  Bf8 {[%clk 0:00:24]} 41. Nf5 {[%clk 0:00:11]}  Rd5 {[%clk 0:00:23]} 42. g4 {[%clk 0:00:10]}  h5 {[%clk 0:00:20]} 43. Rb8 {[%clk 0:00:09]}  Rd8 {[%clk 0:00:20]} 44. Rb7 {[%clk 0:00:09]}  hxg4 {[%clk 0:00:20]} 45. hxg4 {[%clk 0:00:10]}  Kh7 {[%clk 0:00:19]} 46. Rxf7+ {[%clk 0:00:10]}  Kg6 {[%clk 0:00:19]} 47. Rb7 {[%clk 0:00:10]}  Rd3 {[%clk 0:00:17]} 48. Rb6 {[%clk 0:00:09]}  Kf6 {[%clk 0:00:15]} 49. Ng3 {[%clk 0:00:08]}  Ke5 {[%clk 0:00:14]} 50. Rb5+ {[%clk 0:00:07]}  Bc5 {[%clk 0:00:13]} 51. Rb8 {[%clk 0:00:03]}  Nf4+ {[%clk 0:00:13]} 52. Kh2 {[%clk 0:00:03]}  Bxf2 {[%clk 0:00:13]} 53. Re8+ {[%clk 0:00:04]}  Kf6 {[%clk 0:00:12]} 54. Ne4+ {[%clk 0:00:03]}  Kg6 {[%clk 0:00:10]} 55. Nxf2 {[%clk 0:00:03]}  Rf3 {[%clk 0:00:10]} 56. Ne4 {[%clk 0:00:03]}  Rh3+ {[%clk 0:00:10]} 57. Kg1 {[%clk 0:00:03]}  Re3 {[%clk 0:00:11]} 58. Kf2 {[%clk 0:00:03]}  Nd5 {[%clk 0:00:11]} 59. Re5 {[%clk 0:00:02]}  Nf6 {[%clk 0:00:09]} 60. Kxe3 {[%clk 0:00:02]}  Nxg4+ {[%clk 0:00:09]} 61. Kf4 {[%clk 0:00:02]}  Nxe5 {[%clk 0:00:10]} 1/2-1/2


[Site "https://www.chess.com"]

[Event "Titled Tuesday Blitz January 11 2022"]
[White "Leiva, Gianmarco"]
[Black "Shimanov, Aleksandr"]
[WhiteFideId "3804399"]
[BlackFideId "4198603"]
[WhiteElo "2328"]
[BlackElo "2636"]
[Result "0-1"]
[Round "07"]
[TimeControl "180+1"]
[Date "2022.01.11"]
[WhiteClock "0:00:01"]
[BlackClock "0:00:34"]

1. e4 {[%clk 0:03:00]}  d5 {[%clk 0:02:59]} 2. exd5 {[%clk 0:02:56]}  Qxd5 {[%clk 0:03:00]} 3. Nc3 {[%clk 0:02:57]}  Qe5+ {[%clk 0:03:00]} 4. Qe2 {[%clk 0:02:55]}  Qxe2+ {[%clk 0:02:59]} 5. Ngxe2 {[%clk 0:02:55]}  c6 {[%clk 0:02:57]} 6. g3 {[%clk 0:02:48]}  Nf6 {[%clk 0:02:56]} 7. Bg2 {[%clk 0:02:49]}  Bf5 {[%clk 0:02:50]} 8. d3 {[%clk 0:02:49]}  Nbd7 {[%clk 0:02:50]} 9. Bd2 {[%clk 0:02:48]}  e6 {[%clk 0:02:49]} 10. O-O-O {[%clk 0:02:44]}  O-O-O {[%clk 0:02:46]} 11. h3 {[%clk 0:02:40]}  h5 {[%clk 0:02:45]} 12. Nd4 {[%clk 0:02:36]}  Bg6 {[%clk 0:02:45]} 13. Nf3 {[%clk 0:02:36]}  Be7 {[%clk 0:02:44]} 14. Rde1 {[%clk 0:02:22]}  Rhe8 {[%clk 0:02:41]} 15. Be3 {[%clk 0:02:08]}  a6 {[%clk 0:02:22]} 16. Bg5 {[%clk 0:01:55]}  Nd5 {[%clk 0:02:12]} 17. Bxe7 {[%clk 0:01:52]}  Nxe7 {[%clk 0:02:12]} 18. Ne4 {[%clk 0:01:49]}  Bxe4 {[%clk 0:02:11]} 19. dxe4 {[%clk 0:01:41]}  Ng6 {[%clk 0:01:58]} 20. Ng5 {[%clk 0:01:26]}  Re7 {[%clk 0:01:57]} 21. h4 {[%clk 0:01:26]}  f6 {[%clk 0:01:53]} 22. Nh3 {[%clk 0:01:24]}  Nge5 {[%clk 0:01:45]} 23. f4 {[%clk 0:01:17]}  Nf7 {[%clk 0:01:40]} 24. Bf3 {[%clk 0:01:15]}  Rh8 {[%clk 0:01:41]} 25. Nf2 {[%clk 0:01:13]}  e5 {[%clk 0:01:40]} 26. f5 {[%clk 0:01:11]}  Nd6 {[%clk 0:01:37]} 27. Rd1 {[%clk 0:01:08]}  Kc7 {[%clk 0:01:37]} 28. Rd2 {[%clk 0:01:08]}  Nc4 {[%clk 0:01:37]} 29. Rd3 {[%clk 0:01:07]}  b5 {[%clk 0:01:29]} 30. b3 {[%clk 0:01:03]}  Ncb6 {[%clk 0:01:28]} 31. Rg1 {[%clk 0:00:56]}  Nc5 {[%clk 0:01:27]} 32. Rc3 {[%clk 0:00:55]}  Nb7 {[%clk 0:01:25]} 33. g4 {[%clk 0:00:53]}  hxg4 {[%clk 0:01:25]} 34. Rxg4 {[%clk 0:00:54]}  b4 {[%clk 0:01:16]} 35. Re3 {[%clk 0:00:53]}  Nc5 {[%clk 0:01:15]} 36. Be2 {[%clk 0:00:50]}  a5 {[%clk 0:01:14]} 37. Reg3 {[%clk 0:00:50]}  Rh7 {[%clk 0:01:14]} 38. Kb2 {[%clk 0:00:48]}  Nc8 {[%clk 0:01:13]} 39. Nd3 {[%clk 0:00:27]}  Nxd3+ {[%clk 0:01:11]} 40. Bxd3 {[%clk 0:00:26]}  Nd6 {[%clk 0:01:11]} 41. a3 {[%clk 0:00:23]}  Kb6 {[%clk 0:01:09]} 42. c3 {[%clk 0:00:22]}  c5 {[%clk 0:01:08]} 43. a4 {[%clk 0:00:22]}  Rd7 {[%clk 0:01:06]} 44. Kc2 {[%clk 0:00:22]}  Kc7 {[%clk 0:01:06]} 45. Rg2 {[%clk 0:00:22]}  Kd8 {[%clk 0:01:06]} 46. Bb5 {[%clk 0:00:18]}  Rc7 {[%clk 0:01:06]} 47. Bc4 {[%clk 0:00:16]}  Ke8 {[%clk 0:01:00]} 48. Bg8 {[%clk 0:00:15]}  Rh8 {[%clk 0:01:00]} 49. Bd5 {[%clk 0:00:15]}  Kf8 {[%clk 0:00:59]} 50. c4 {[%clk 0:00:15]}  Rh6 {[%clk 0:00:56]} 51. Kd3 {[%clk 0:00:15]}  Re7 {[%clk 0:00:55]} 52. Ke3 {[%clk 0:00:15]}  Rd7 {[%clk 0:00:50]} 53. R2g3 {[%clk 0:00:14]}  Rc7 {[%clk 0:00:46]} 54. Kf2 {[%clk 0:00:15]}  Nc8 {[%clk 0:00:45]} 55. Rd3 {[%clk 0:00:13]}  Rd7 {[%clk 0:00:45]} 56. Kg3 {[%clk 0:00:11]}  Na7 {[%clk 0:00:44]} 57. Kh3 {[%clk 0:00:08]}  Nc6 {[%clk 0:00:42]} 58. Rg6 {[%clk 0:00:05]}  Nd4 {[%clk 0:00:40]} 59. Rxh6 {[%clk 0:00:05]}  gxh6 {[%clk 0:00:41]} 60. Rg3 {[%clk 0:00:04]}  Rg7 {[%clk 0:00:42]} 61. Rd3 {[%clk 0:00:02]}  h5 {[%clk 0:00:38]} 62. Kh2 {[%clk 0:00:02]}  Rg4 {[%clk 0:00:38]} 63. Kh3 {[%clk 0:00:03]}  Kg7 {[%clk 0:00:39]} 64. Be6 {[%clk 0:00:03]}  Rxe4 {[%clk 0:00:37]} 65. Bd7 {[%clk 0:00:03]}  Rg4 {[%clk 0:00:37]} 66. Be8 {[%clk 0:00:03]}  Kh6 {[%clk 0:00:36]} 67. Bf7 {[%clk 0:00:01]}  e4 {[%clk 0:00:35]} 68. Rd1 {[%clk 0:00:01]}  e3 {[%clk 0:00:34]} 0-1


[Site "https://www.chess.com"]

[Event "Titled Tuesday Blitz January 11 2022"]
[White "Maghsoodloo, Parham"]
[Black "Panesar Vedant"]
[WhiteFideId "12539929"]
[BlackFideId "35033018"]
[WhiteElo "2630"]
[BlackElo "1971"]
[Result "1-0"]
[Round "07"]
[TimeControl "180+1"]
[Date "2022.01.11"]
[WhiteClock "0:00:16"]
[BlackClock "0:00:04"]

1. e4 {[%clk 0:03:00]}  e5 {[%clk 0:02:59]} 2. Nf3 {[%clk 0:02:59]}  Nc6 {[%clk 0:02:59]} 3. Bb5 {[%clk 0:02:58]}  a6 {[%clk 0:02:59]} 4. Ba4 {[%clk 0:02:58]}  Nf6 {[%clk 0:02:59]} 5. O-O {[%clk 0:02:56]}  b5 {[%clk 0:03:00]} 6. Bb3 {[%clk 0:02:56]}  Bc5 {[%clk 0:03:00]} 7. c3 {[%clk 0:02:56]}  d6 {[%clk 0:03:01]} 8. d4 {[%clk 0:02:56]}  Bb6 {[%clk 0:03:01]} 9. a4 {[%clk 0:02:56]}  Rb8 {[%clk 0:03:01]} 10. a5 {[%clk 0:02:55]}  Ba7 {[%clk 0:03:02]} 11. Be3 {[%clk 0:02:56]}  Bg4 {[%clk 0:02:58]} 12. dxe5 {[%clk 0:02:43]}  Bxf3 {[%clk 0:02:11]} 13. Qxf3 {[%clk 0:02:43]}  Nxe5 {[%clk 0:02:11]} 14. Qe2 {[%clk 0:02:42]}  Bxe3 {[%clk 0:02:12]} 15. Qxe3 {[%clk 0:02:43]}  O-O {[%clk 0:02:11]} 16. Nd2 {[%clk 0:02:37]}  Re8 {[%clk 0:02:09]} 17. h3 {[%clk 0:02:35]}  c5 {[%clk 0:02:07]} 18. f4 {[%clk 0:02:32]}  Ng6 {[%clk 0:02:05]} 19. Bc2 {[%clk 0:01:46]}  Rb7 {[%clk 0:01:53]} 20. Qf2 {[%clk 0:01:22]}  Rbe7 {[%clk 0:01:49]} 21. Rfe1 {[%clk 0:01:21]}  c4 {[%clk 0:01:23]} 22. g3 {[%clk 0:01:18]}  Nf8 {[%clk 0:01:23]} 23. Qb6 {[%clk 0:01:02]}  Qc8 {[%clk 0:00:57]} 24. Kh2 {[%clk 0:01:00]}  N8d7 {[%clk 0:00:46]} 25. Qd4 {[%clk 0:00:59]}  Nc5 {[%clk 0:00:44]} 26. Re2 {[%clk 0:00:59]}  Ne6 {[%clk 0:00:35]} 27. Qf2 {[%clk 0:00:58]}  Qc5 {[%clk 0:00:35]} 28. Kg2 {[%clk 0:00:54]}  h6 {[%clk 0:00:32]} 29. Rae1 {[%clk 0:00:53]}  Qxf2+ {[%clk 0:00:31]} 30. Kxf2 {[%clk 0:00:53]}  Nc5 {[%clk 0:00:32]} 31. Kf3 {[%clk 0:00:48]}  Nfd7 {[%clk 0:00:31]} 32. h4 {[%clk 0:00:33]}  Nb8 {[%clk 0:00:30]} 33. g4 {[%clk 0:00:32]}  Nc6 {[%clk 0:00:31]} 34. Ra1 {[%clk 0:00:31]}  g5 {[%clk 0:00:25]} 35. hxg5 {[%clk 0:00:28]}  hxg5 {[%clk 0:00:26]} 36. b4 {[%clk 0:00:25]}  cxb3 {[%clk 0:00:23]} 37. Nxb3 {[%clk 0:00:25]}  gxf4 {[%clk 0:00:16]} 38. Nxc5 {[%clk 0:00:20]}  dxc5 {[%clk 0:00:14]} 39. Kxf4 {[%clk 0:00:21]}  Ne5 {[%clk 0:00:13]} 40. Rd2 {[%clk 0:00:20]}  Nc4 {[%clk 0:00:12]} 41. Rd5 {[%clk 0:00:20]}  Re6 {[%clk 0:00:11]} 42. Rxc5 {[%clk 0:00:18]}  Nd2 {[%clk 0:00:08]} 43. Re1 {[%clk 0:00:17]}  Rf6+ {[%clk 0:00:08]} 44. Rf5 {[%clk 0:00:16]}  Rxf5+ {[%clk 0:00:08]} 45. gxf5 {[%clk 0:00:16]}  Rc8 {[%clk 0:00:09]} 46. Re3 {[%clk 0:00:17]}  Nc4 {[%clk 0:00:09]} 47. Rg3+ {[%clk 0:00:16]}  Kf8 {[%clk 0:00:09]} 48. f6 {[%clk 0:00:17]}  Nxa5 {[%clk 0:00:08]} 49. e5 {[%clk 0:00:17]}  Rc4+ {[%clk 0:00:08]} 50. Kf5 {[%clk 0:00:17]}  Nc6 {[%clk 0:00:07]} 51. Be4 {[%clk 0:00:17]}  Nd8 {[%clk 0:00:05]} 52. Rh3 {[%clk 0:00:16]}  Ke8 {[%clk 0:00:06]} 53. Bd5 {[%clk 0:00:16]}  Rc5 {[%clk 0:00:05]} 54. Ke4 {[%clk 0:00:16]}  a5 {[%clk 0:00:04]} 55. Rh8+ {[%clk 0:00:15]}  Kd7 {[%clk 0:00:04]} 56. Rf8 {[%clk 0:00:14]}  Rxc3 {[%clk 0:00:05]} 57. Bxf7 {[%clk 0:00:14]}  a4 {[%clk 0:00:05]} 58. Bd5 {[%clk 0:00:14]}  a3 {[%clk 0:00:05]} 59. Rg8 {[%clk 0:00:15]}  a2 {[%clk 0:00:04]} 60. Rg7+ {[%clk 0:00:16]}  Ke8 {[%clk 0:00:03]} 61. Ra7 {[%clk 0:00:16]}  Rc2 {[%clk 0:00:01]} 62. e6 {[%clk 0:00:16]}  Nxe6 {[%clk 0:00:01]} 63. Bxe6 {[%clk 0:00:16]}  Re2+ {[%clk 0:00:02]} 64. Kd5 {[%clk 0:00:16]}  a1=Q {[%clk 0:00:02]} 65. Rxa1 {[%clk 0:00:16]}  Rd2+ {[%clk 0:00:03]} 66. Ke5 {[%clk 0:00:16]}  Re2+ {[%clk 0:00:03]} 67. Kd6 {[%clk 0:00:16]}  Rd2+ {[%clk 0:00:04]} 68. Bd5 {[%clk 0:00:16]} 1-0


[Site "https://www.chess.com"]

[Event "Titled Tuesday Blitz January 11 2022"]
[White "Nesterov, Arseniy"]
[Black "Jaracz, Pawel"]
[WhiteFideId "24198455"]
[BlackFideId "1102222"]
[WhiteElo "2489"]
[BlackElo "2429"]
[Result "1-0"]
[Round "07"]
[TimeControl "180+1"]
[Date "2022.01.11"]
[WhiteClock "0:01:08"]
[BlackClock "0:00:33"]

1. d4 {[%clk 0:03:00]}  Nf6 {[%clk 0:02:59]} 2. c4 {[%clk 0:03:01]}  e6 {[%clk 0:02:59]} 3. Nc3 {[%clk 0:03:01]}  Bb4 {[%clk 0:02:59]} 4. Qc2 {[%clk 0:03:01]}  d6 {[%clk 0:02:52]} 5. e4 {[%clk 0:03:00]}  c5 {[%clk 0:02:51]} 6. d5 {[%clk 0:02:31]}  O-O {[%clk 0:02:45]} 7. Bd3 {[%clk 0:02:25]}  exd5 {[%clk 0:02:41]} 8. cxd5 {[%clk 0:02:26]}  b5 {[%clk 0:02:36]} 9. Bxb5 {[%clk 0:02:11]}  Qe7 {[%clk 0:02:15]} 10. Ne2 {[%clk 0:02:01]}  Qxe4 {[%clk 0:02:02]} 11. Qxe4 {[%clk 0:02:00]}  Nxe4 {[%clk 0:02:03]} 12. O-O {[%clk 0:01:59]}  Bxc3 {[%clk 0:01:55]} 13. Nxc3 {[%clk 0:01:51]}  Bf5 {[%clk 0:01:41]} 14. Bf4 {[%clk 0:01:43]}  Rd8 {[%clk 0:01:27]} 15. Nxe4 {[%clk 0:01:27]}  Bxe4 {[%clk 0:01:27]} 16. Rfe1 {[%clk 0:01:28]}  Bxd5 {[%clk 0:01:24]} 17. Rad1 {[%clk 0:01:19]}  Be6 {[%clk 0:01:09]} 18. Rxd6 {[%clk 0:01:15]}  Rxd6 {[%clk 0:01:07]} 19. Bxd6 {[%clk 0:01:16]}  a6 {[%clk 0:00:44]} 20. Ba4 {[%clk 0:01:14]}  Nd7 {[%clk 0:00:43]} 21. h3 {[%clk 0:01:08]}  Rc8 {[%clk 0:00:39]} 22. Rxe6 {[%clk 0:01:06]}  fxe6 {[%clk 0:00:33]} 23. Bxd7 {[%clk 0:01:06]}  Rd8 {[%clk 0:00:33]} 24. Bxe6+ {[%clk 0:01:07]}  Kh8 {[%clk 0:00:33]} 25. Bxc5 {[%clk 0:01:08]} 1-0


[Site "https://www.chess.com"]